Cogmind - Beta 15 @@@ ROGUE MODE // 2025.06.17 @ 16:28:28 Player: the cat! Result: Destroyed by G-34 Mercenary with Small Laser Performance ------------- Evolutions (0) 0 Regions Visited (1) 200 Robots Destroyed (8) 40 Value Destroyed (298) 298 Prototype IDs (0) 0 Alien Tech Used (0) 0 Bonus (0) 0 TOTAL SCORE: 538 Bonus ------- None Cogmind --------- Core Integrity 0/250 Matter 295/300 Energy 100/100 System Corruption 2% Temperature Cool (6) Movement Treading (160) Location -10/Materials Parts ------- > --- POWER (1) -------- (None) > --- PROPULSION (2) --- Light Treads > --- UTILITY (2) ------ Improved Heat Sink > --- WEAPON (2) ------- Small Laser Particle Gun > --- INVENTORY (5) ---- Light Treads Wheel Wheel Small Storage Unit Peak State ------------ > --- POWER ------------ Ion Engine > --- PROPULSION ------- Aluminum Leg Aluminum Leg > --- UTILITY ---------- Improved Heat Sink Small Storage Unit > --- WEAPON ----------- Medium Laser Medium Laser > --- INVENTORY -------- Ion Engine Light Treads Light Treads Wheel Wheel [Rating: 9] Favorites ----------- Power Ion Engine Engine Ion Engine Propulsion Aluminum Leg Treads Light Treads Leg Aluminum Leg Utility Small Storage Unit Device Improved Heat Sink Storage Small Storage Unit Protection Light Armor Plating Weapon Medium Laser Energy Gun Medium Laser Build | -11 -10 ------- Run | Yrd Mat Slots Evolved . | . . Power . | . . Propulsion . | . . Utility . | . . Weapon . | . . Parts Attached 7 | . 7 Power 1 | . 1 Engine 1 | . 1 Core . | . . Reactor . | . . Propulsion 1 | . 1 Treads 1 | . 1 Leg . | . . Wheel . | . . Hover . | . . Flight . | . . Utility 2 | . 2 Device 1 | . 1 Storage . | . . Processor . | . . Hackware . | . . Protection 1 | . 1 Artifact . | . . Weapon 3 | . 3 Energy Gun 3 | . 3 Energy Cannon . | . . Ballistic Gun . | . . Ballistic Cannon . | . . Launcher . | . . Special Weapon . | . . Impact Weapon . | . . Slashing Weapon . | . . Piercing Weapon . | . . Special Melee Weapon . | . . Unidentified Prototypes . | . . Corrupted Parts 1 | . 1 System Corruption 2 | . 2 Parts Lost 8 | . 8 Power 2 | . 2 Propulsion 2 | . 2 Utility 1 | . 1 Weapon 3 | . 3 Highest Loss Streak 4 | . 4 To Critical Strikes . | . . Average Backups 4 | . 4 Power . | . . Propulsion 3 | . 3 Utility . | . . Weapon . | . . Tool/Special . | . . Unused Backups 9 | . 9 Power 1 | . 1 Propulsion 5 | . 5 Utility 1 | . 1 Weapon 2 | . 2 Tool/Special . | . . Average Slot Usage (%) 84 | . 84 Engine 13 | . 13 Treads 7 | . 7 Leg 13 | . 13 Device 7 | . 7 Storage 11 | . 11 Protection 2 | . 2 Energy Gun 27 | . 27 Peak Build Rating 9 | . 9 Average Rating 6 | . 6 On Entrance 6 | 6 6 Naked Turns . | . . Heaviest Build 16 | 14 16 Greatest Support 20 | 20 20 Greatest Overweight (x) . | . . Average Overweight (x) . | . . Largest Inventory Capacity 8 | . 8 Average Capacity 7 | . 7 Most Carried 6 | . 6 Average Carried 4 | . 4 Final Capacity 8 | 8 5 Final Carried 6 | 6 4 Class Distribution -------------------- 100% | Mutant Dominant Class ---------------- Mutant | -10/Materials Resources | -11 -10 ----------- Run | Yrd Mat Matter Collected 278 | 176 102 Remotely . | . . Salvage Created 336 | . 336 Parts 14 | . 14 Haulers Intercepted . | . . Recyclers Shooed . | . . Parts Field Recycled . | . . Retrieved Matter . | . . Parts Self-Destructed . | . . Prevented . | . . Kills | -11 -10 ------- Run | Yrd Mat Combat Hostiles Destroyed 8 | . 8 Guns 8 | . 8 Classes Destroyed 1 | . 1 Grunt 8 | . 8 Best Kill Streak 4 | . 4 Combat Bots Only 4 | . 4 Max Kills in Single Turn 1 | . 1 Gunslinging . | . . Exploded . | . . Melee . | . . Uniques/NPCs Destroyed . | . . Combat | -11 -10 -------- Run | Yrd Mat Hostile Shots Fired 121 | . 121 Missed 27 | . 27 Hits 94 | . 94 Projectile 94 | . 94 Critical Strikes 1 | . 1 Damage Taken 1091 | . 1091 Core 253 | . 253 Absorbed by Shields . | . . Core Remaining (%) 100 | 100 . Volleys Fired 49 | . 49 Largest 2 | . 2 Hottest 100 | . 100 Shots Fired 88 | . 88 Gun 88 | . 88 Cannon . | . . Launcher . | . . Special . | . . Kinetic . | . . Thermal 74 | . 74 Explosive . | . . Electromagnetic 14 | . 14 Robot Hit Streak 9 | . 9 Robot Miss Streak 5 | . 5 Penetration Max . | . . Secondary Targets 1 | . 1 Max Gunslinging Chain 1 | . 1 Shots Hit Robots 56 | . 56 Core Hits 21 | . 21 Critical Kills . | . . Critical Parts Destroyed . | . . Critical Strikes 4 | . 4 Burn 4 | . 4 Melee Attacks . | . . Impact . | . . Slashing . | . . Piercing . | . . Sneak Attacks . | . . Combat Hostiles . | . . Follow-up Attacks . | . . Damage Inflicted 733 | . 733 Guns 733 | . 733 Cannons . | . . Explosions . | . . Melee . | . . Ramming . | . . Kinetic . | . . Thermal 624 | . 624 Explosive . | . . Electromagnetic 109 | . 109 Impact . | . . Slashing . | . . Piercing . | . . Highest Corruption 2 | . 2 Average Corruption 2 | . 2 Corruption Purged . | . . Corruption Blocked . | . . Effects 2 | . 2 Message Errors 1 | . 1 Matter Fused 1 | . 1 Overload Shots . | . . Overflow Damage . | . . Projectiles . | . . Explosions . | . . Melee . | . . Knockbacks . | . . Impact . | . . Kinetic . | . . Secondary . | . . Self-Inflicted Damage . | . . Shots . | . . Rammed . | . . Targets Rammed . | . . Kicked . | . . Crushed . | . . Highest Temperature 382 | . 382 Average Temperature 120 | . 120 Received Heat Transfer 636 | . 636 Effects 5 | . 5 Energy Bleed 3 | . 3 Interference 1 | . 1 Matter Decay 1 | . 1 Siege Activations . | . . Martial Activations . | . . Shielding Activations . | . . Robots Disrupted . | . . Combat Hostiles . | . . Robots Corrupted . | . . Combat Hostiles . | . . Parts Fried . | . . Impact Corruptions . | . . Robots Melted . | . . Combat Hostiles . | . . Parts Melted 4 | . 4 Heat Transferred 2016 | . 2016 Parts Sabotaged . | . . Parts Stolen . | . . Parts Stripped . | . . Power Chain Reactions . | . . Alert | -11 -10 ------- Run | Yrd Mat Maximum Alert Level . | . . Low Security (%) 100 | . 100 Level 1 . | . . Level 2 . | . . Level 3 . | . . Level 4 . | . . Level 5 . | . . High Security . | . . Max Security . | . . Peak Influence 50 | . 50 Initial . | . . Average 22 | . 22 Influence Increases 196 | . 196 Destroy 0b10 Robot/C 160 | . 160 Destroy Leader 30 | . 30 Successful Hack 6 | . 6 Influence Decreases 196 | . 196 Time Decay 136 | . 136 Lost Part 60 | . 60 Squads Dispatched 3 | . 3 Investigation 1 | . 1 Extermination . | . . Reinforcement 2 | . 2 Assault . | . . Garrison . | . . Intercept . | . . Searches Triggered . | . . Construction Impeded . | . . Haulers Reinforced . | . . Active Scanning Responses . | . . Cargo Convoy Interrupts . | . . Stealth | -11 -10 --------- Run | Yrd Mat Distress Signals 1 | . 1 Communications Jammed . | . . Distress Signals . | . . Times Spotted 18 | . 18 Peak Tracking Total 6 | . 6 Tactical Retreats . | . . Traps | -11 -10 ------- Run | Yrd Mat Traps Triggered 1 | . 1 Indirectly . | . . Trap Hack Attempts . | . . Triggered . | . . Disarmed . | . . Reprogrammed . | . . Reused . | . . Traps Extracted . | . . Installed . | . . Triggered . | . . Machines | -11 -10 ---------- Run | Yrd Mat Machines Disabled . | . . Max in Single Turn . | . . Machines Repaired . | . . Machines Dismantled . | . . Machines Sabotaged . | . . Overloaded Fab Kills . | . . Hacking | -11 -10 --------- Run | Yrd Mat Machines Accessed 2 | . 2 Terminals 1 | . 1 Fabricators . | . . Repair Stations . | . . Recycling Units 1 | . 1 Scanalyzers . | . . Garrison Access . | . . Total Hacks 6 | . 6 Successful 5 | . 5 Failed 1 | . 1 Catastrophic . | . . Database Lockouts . | . . Manual 6 | . 6 Terminals 3 | . 3 Fabricators . | . . Repair Stations . | . . Recycling Units 3 | . 3 Scanalyzers . | . . Garrison Access . | . . Terminal Hacks 1 | . 1 Terminal Index 1 | . 1 Fabricator Hacks . | . . Repair Station Hacks . | . . Recycling Unit Hacks . | . . Scanalyzer . | . . Garrison Access Hacks . | . . Unauthorized Hacks 4 | . 4 Terminals 1 | . 1 Botnet 1 | . 1 Fabricators . | . . Repair Stations . | . . Recycling Units 3 | . 3 Reject 1 | . 1 Recyclers 1 | . 1 Mask 1 | . 1 Scanalyzers . | . . Garrison Access . | . . Data Cores Recovered . | . . Used . | . . Hacking Detections 2 | . 2 Full Trace Events . | . . Feedback Events . | . . Feedback Blocked . | . . Robot Schematics Acquired . | . . Robots Built . | . . Authchips . | . . Time . | . . Total Robot Build Rating . | . . Part Schematics Acquired . | . . Parts Built . | . . Authchips . | . . Time . | . . Total Part Build Rating . | . . Parts Repaired . | . . Time . | . . Parts Recycled . | . . Recycled Matter . | . . Retrieved Matter . | . . Retrieved Components . | . . Parts Scanalyzed . | . . Part Schematics Acquired . | . . Parts Damaged . | . . Bothacking | -11 -10 ------------ Run | Yrd Mat Used RIF Installer . | . . Robots Hacked . | . . Non-combat . | . . Combat . | . . Robot Hacks Applied . | . . Relay Couplers Released . | . . Fabnet Peak Effective % . | . . Robots Rewired . | . . Allies Hacked . | . . Hacks Repelled . | . . Allies | -11 -10 -------- Run | Yrd Mat Total Allies . | . . Largest Group . | . . Highest-Rated Group . | . . Highest-Rated Ally . | . . Total Orders . | . . Ally Attacks . | . . Total Damage . | . . Kills . | . . Allies Corrupted . | . . Allies Melted . | . . Intel | -11 -10 ------- Run | Yrd Mat Active Infowar (turns) . | . . Robot Analysis Total . | . . Derelict Logs Recovered . | . . Drone Launches . | . . Drone Recoveries . | . . Exploration | -11 -10 ------------- Run | Yrd Mat Turns Passed 329 | . 329 Spaces Moved 122 | 1 121 Core . | . . Treads 55 | . 55 Legs 67 | 1 66 Wheels . | . . Hover . | . . Flight . | . . Fastest Speed 120 | 120 120 Average Speed 138 | 120 138 Slowest Speed 160 | 120 160 Overloaded Moves . | . . Propulsion Burnouts . | . . Robots Hopped . | . . Potential Cave-ins . | . . Cave-ins Triggered . | . . Exploration Rate (%) 20 | 2 39 Regions Visited 1 Branch Regions . Pre-discovered Areas . | . . Known Exits Taken . | . . Unknown Exits Taken 1 | 1 . Scrap Searched . | . . Spaces Dug . | . . Terrain Destroyed . | . . Melee . | . . Projectile . | . . AOE . | . . Terrain Rammed . | . . Walls Destroyed . | . . Machines Disabled . | . . Actions | -11 -10 --------- Run | Yrd Mat Total 193 | . 193 Wait 11 | . 11 Move 121 | . 121 Hop . | . . Pick Up 3 | . 3 Fast Attach 2 | . 2 Attach 5 | . 5 Detach . | . . Swap 1 | . 1 Drop 1 | . 1 Fire 49 | . 49 Melee . | . . Ram . | . . Kick . | . . Crush . | . . Escape Stasis . | . . Rewire . | . . Trap . | . . Miscellaneous . | . . Route ------- -11/Scrapyard -10/Materials History --------- Turn | Location | Event 1 | -11/Scrapyard | Discovered new exit (range 0) 1 | -11/Scrapyard | Entered Materials 147 | -10/Materials | Core integrity fell below 50% 207 | -10/Materials | Lost 4 parts (1p2n1w) 279 | -10/Materials | Core integrity fell below 20% 311 | -10/Materials | Build established: Mutant 330 | -10/Materials | Destroyed by G-34 Mercenary with Small Laser Last Messages --------------- >>Trojan(Reject) Trojan loaded successfully. Testing... Ejection routine running. >>Trojan(Recyclers) Trojan loaded successfully. Testing... Recycler tracking enabled and active. 00250_ System corrupted: Matter fused (-6). 00270_ Dropped Sml. Storage Unit. 00272_ Acquired Sml. Storage Unit. 00290_ Critical hit (Burn: +37). 00292_ G-47 Trooper suffers critical hit (Burn). 00292_ G-47 Trooper destroyed. 00295_ Acquired 26 matter. 00299_ Acquired Particle Gun. 00300_ Lgt. Armor Plating destroyed. 00300_ W-16 Scout sends out distress signal. 00327_ Med. Laser destroyed. 00329_ Ion Engine destroyed. Map ----- +----------------------------------------------------+ | ???????????????????????????????????????" ??????? | | ??????????????????????????????? ???" #?????# | | ?????????????????????????????? ??" ####### | | ?????????????????????????????# ?" | | ?????????????????????????????# """ | | ?????????????????????????????# "" | | ????????????????????????????? """ ######## | | ????????????????????????????? " # ## | | ?????????????????????????????? # #? | | ????????????????????????????????? # #? | | ???????????????????????????#???????# # #? | | ???????????????????????????# ??????# # #? | | ???????????????????????????# ??????# + #? | | ???????????????????????????# ?? ??# # %#? | | ???????????????????????????# ? ??# # =#? | | ???????????????????????????# ???# # #? | | ???????????????????????????# ???# # #? | | ???????????????????????????# ???# # #? | | ????????????????####+######## #### # % #? | | ????????????????# # ##+##### | | ????????????????# u/ | | ????????????????# g# | | ????????????????# t # """% | | ????????????????# ######/######### "R[= | | ????????????????# w g # #?# """ | | ????????????????# k @g # ""r """ #?# % | | ?????????????????####u#####g# "Y """ #?# | | ??????????????????????????# # "" """ #?# | | ??????????????????????????# # % #?# " | | ??????????????????????????# ###+##########?# " | | ??????????????????????????# == " | | ??????????????????????????# | | ??????????????????????????# | | ??????????????????????????# ################# | | ??????????????????????????# #???????????????? | | ??????????????????????????# #???????????????? | | ?????????????????????????? +???????????????? | | ????????????????????????? #???????????????? | | ???????????????????????? #???????????????? | | ???????????????????????? #???????????????? | | ???????????????????????#T##+###+##???????????????? | | ???????????????????????##????????????????????????? | | ?????????????????????????????????????????????????? | | ?????????????????????????????????????????????????? | | ?????????????????????????????????????????????????? | | ?????????????????????????????????????????????????? | | ?????????????????????????????????????????????????? | | ?????????????????????????????????????????????????? | | ?????????????????????????????????????????????????? | | ?????????????????????????????????????????????????? | +----------------------------------------------------+ Best States ------------- Heat Dissipation 39 Energy Generation 10 Energy Capacity 250 Matter Stores 300 Matter Capacity 300 Sight Range 16 Terrain Scan Density 10 Armor Coverage 150 Evasion (%) 55 Recoil Reduction 1 Item Schematics ----------------- None Robot Schematics ------------------ None Fabricated ------------ Nothing Repaired ---------- Nothing Alien Tech Used ----------------- None Achievements -------------- None Challenges ------------ None Game ------ Seed WeaponsNullSpear Manual? 0 Play Time 00:07:44 Cumulative 350.9 hours Start 2025.06.17 @ 16:24:16 End 2025.06.17 @ 16:28:28 Sessions 1 Manual Loads 0 Difficulty Rogue Special Mode None Game No. 101 Rogue 84 Adventurer 17 Explorer 0 Win Type - Total 18 Types 8/1/7/1/0/0/1/0/0/0 Lore% 66 Gallery% 74 Achievement% 73 Wizard Run 0 Options --------- Layout 2 ASCII 0 Keyboard 0 Movement Arrows Keybinds 0 Fullscreen 1 Font 24/Terminus Map View 50x44 Zoom Use 0% Tactical HUD 1 Map Filters NONE Filters NONE Steam 1 RUN: 836902e7-82df-4c0e-8e7f-afc39f8276ea